bitfinex/quotes_BTCUSD_20240818
["timestamp","ask_amount","ask_price","bid_price","bid_amount"]
[1724016253803,2.20292216,59801.0,59800.0,1e-06]
[1724016254019,2.30287873,59801.0,59800.0,1e-06]
[1724016256265,2.30187873,59801.0,59800.0,1e-06]
[1724016256468,2.29987873,59801.0,59800.0,1e-06]
[1724016257193,2.19992216,59801.0,59800.0,1e-06]
[1724016257546,2.29989467,59801.0,59800.0,1e-06]
[1724016258161,2.19992216,59801.0,59800.0,1e-06]
[1724016258783,2.3734767,59801.0,59800.0,1e-06]
[1724016258991,2.3744767,59801.0,59800.0,1e-06]
[1724016259625,2.3734767,59801.0,59800.0,1e-06]
[1724016259837,2.3714767,59801.0,59800.0,1e-06]
[1724016260756,2.3744767,59801.0,59800.0,1e-06]
[1724016260959,2.3734767,59801.0,59800.0,1e-06]
[1724016261403,2.3714767,59801.0,59800.0,1e-06]
[1724016262245,2.6085857,59801.0,59800.0,1e-06]
[1724016262448,2.6075857,59801.0,59800.0,1e-06]
[1724016262650,2.6055857,59801.0,59800.0,1e-06]
[1724016263070,2.6075857,59801.0,59800.0,1e-06]
[1724016264356,2.6085857,59801.0,59800.0,1e-06]
[1724016265344,2.6075857,59801.0,59800.0,1e-06]
[1724016265753,2.6085857,59801.0,59800.0,1e-06]
[1724016266936,2.6075857,59801.0,59800.0,1e-06]
[1724016267135,2.6085857,59801.0,59800.0,1e-06]
[1724016267370,2.6075857,59801.0,59800.0,1e-06]
[1724016267766,2.6085857,59801.0,59800.0,1e-06]
[1724016268768,2.6075857,59801.0,59800.0,1e-06]
[1724016269180,2.75760962,59801.0,59800.0,1e-06]
[1724016269793,2.75860962,59801.0,59800.0,1e-06]
[1724016271147,2.6075857,59801.0,59800.0,1e-06]
[1724016271364,2.75762184,59801.0,59800.0,1e-06]
[1724016271807,2.75562184,59801.0,59800.0,1e-06]
[1724016272018,1.94381316,59801.0,59800.0,0.146901]
[1724016272234,1.70970416,59801.0,59800.0,0.146901]
[1724016272443,1.83474895,59801.0,59800.0,0.146901]
[1724016272664,1.80474895,59801.0,59800.0,0.146901]
[1724016272870,1.80474726,59801.0,59800.0,0.146901]
[1724016273685,1.67970416,59801.0,59800.0,0.146901]
[1724016273925,1.76070416,59801.0,59800.0,0.146901]
[1724016274132,1.57970416,59801.0,59800.0,0.146901]
[1724016274303,1.76072569,59801.0,59800.0,0.146901]
[1724016274964,1.78372569,59801.0,59800.0,0.146901]
[1724016275165,1.78472569,59801.0,59800.0,0.146901]
[1724016275339,1.88472569,59801.0,59800.0,0.146901]
[1724016275579,1.88372569,59801.0,59800.0,0.146901]
[1724016275994,1.88472569,59801.0,59800.0,0.146901]
[1724016277475,1.88471341,59801.0,59800.0,0.146901]
[1724016278535,1.88671341,59801.0,59800.0,0.146901]
[1724016279159,1.88471341,59801.0,59800.0,0.146901]
[1724016281257,1.78470416,59801.0,59800.0,0.146901]
[1724016282989,1.78670416,59801.0,59800.0,0.146901]
[1724016284551,1.78370416,59801.0,59800.0,0.146901]
[1724016286681,2.01781316,59801.0,59800.0,0.146901]
[1724016288546,1.78370416,59801.0,59800.0,0.146901]
[1724016289234,2.01781316,59801.0,59800.0,0.146901]
[1724016291671,2.01881316,59801.0,59800.0,0.146901]
[1724016295965,2.01781316,59801.0,59800.0,0.146901]
[1724016296580,2.01781316,59801.0,59800.0,0.063801]
[1724016299718,2.09277549,59801.0,59800.0,0.063801]
[1724016299912,2.01781316,59801.0,59800.0,0.063801]
[1724016300232,2.09277549,59801.0,59800.0,0.063801]
[1724016300450,1.77766649,59801.0,59800.0,0.063801]
[1724016300652,1.74301664,59801.0,59800.0,0.141801]
[1724016300991,1.71199162,59801.0,59800.0,0.141801]
[1724016301199,1.10490764,59801.0,59800.0,0.1559811]
[1724016301342,0.6148168,59801.0,59800.0,0.1559811]
[1724016301587,0.8489258,59801.0,59800.0,0.1559811]
[1724016301750,0.8519258,59801.0,59800.0,0.1559811]
[1724016302168,0.8589258,59801.0,59800.0,0.1559811]
[1724016302572,0.8519258,59801.0,59800.0,0.1559811]
[1724016302972,1.0750348,59801.0,59800.0,0.1559811]
[1724016303138,1.0840348,59801.0,59800.0,0.141801]
[1724016303537,1.0750348,59801.0,59800.0,0.141801]
[1724016303941,0.8409258,59801.0,59800.0,0.141801]
[1724016304756,0.8399258,59801.0,59800.0,0.141801]
[1724016305177,1.0740348,59801.0,59800.0,0.1559811]
[1724016305578,0.8399258,59801.0,59800.0,0.1559811]
[1724016307969,0.8409258,59801.0,59800.0,0.1559811]
[1724016310415,0.8399258,59801.0,59800.0,0.1559811]
[1724016311831,0.8399258,59801.0,59800.0,1e-06]
[1724016311832,1.7141438,59801.0,59800.0,1e-06]
[1724016312039,1.7926438,59801.0,59800.0,1e-06]
[1724016312240,2.0277528,59801.0,59800.0,1e-06]
[1724016312699,2.0257528,59801.0,59800.0,1e-06]
[1724016312903,2.19830734,59801.0,59800.0,1e-06]
[1724016313121,2.35538133,59801.0,59800.0,1e-06]
[1724016313448,2.30545174,59801.0,59800.0,1e-06]
[1724016314240,2.37934613,59801.0,59800.0,1e-06]
[1724016314647,2.30545174,59801.0,59800.0,1e-06]
[1724016314840,2.30445174,59801.0,59800.0,1e-06]
[1724016315040,2.38334613,59801.0,59800.0,1e-06]
[1724016315245,2.38034613,59801.0,59800.0,1e-06]
[1724016315447,2.37934613,59801.0,59800.0,1e-06]
[1724016315596,2.40134613,59801.0,59800.0,1e-06]
[1724016315807,2.63445513,59801.0,59800.0,1e-06]
[1724016316013,2.25375639,59801.0,59800.0,1e-06]
[1724016316192,2.1548972,59801.0,59800.0,1e-06]
[1724016316391,2.51383018,59801.0,59800.0,1e-06]
[1724016316620,2.3890062,59801.0,59800.0,1e-06]
[1724016317036,2.51377768,59801.0,59800.0,1e-06]
[1724016317503,2.3890062,59801.0,59800.0,1e-06]
[1724016317708,2.51377954,59801.0,59800.0,1e-06]
[1724016318263,2.68533408,59801.0,59800.0,1e-06]
[1724016318597,2.3890062,59801.0,59800.0,1e-06]
[1724016319031,2.51577954,59801.0,59800.0,1e-06]
[1724016319378,2.3910062,59801.0,59800.0,1e-06]
[1724016319562,2.3930062,59801.0,59800.0,1e-06]
[1724016320409,2.51775493,59801.0,59800.0,1e-06]
[1724016321381,2.3930062,59801.0,59800.0,1e-06]
[1724016321798,2.51774034,59801.0,59800.0,1e-06]
[1724016323657,2.51772151,59801.0,59800.0,1e-06]
[1724016323836,2.51772415,59801.0,59800.0,1e-06]
[1724016324528,2.52972215,59801.0,59800.0,1e-06]
[1724016324810,2.4050042,59801.0,59800.0,1e-06]
[1724016325346,2.4050042,59801.0,59792.0,1e-06]
[1724016325347,1.493775,59793.0,59792.0,1e-06]
[1724016325539,2.29958114,59793.0,59792.0,1e-06]
[1724016325743,2.30137278,59793.0,59792.0,1e-06]
[1724016325943,2.32437278,59793.0,59792.0,1e-06]
[1724016326164,2.71868449,59793.0,59792.0,1e-06]
[1724016326365,2.55851378,59793.0,59792.0,1e-06]
[1724016327215,2.61138039,59793.0,59792.0,1e-06]
[1724016327388,2.61222632,59793.0,59792.0,1e-06]
[1724016328601,2.61222632,59793.0,59791.0,5e-07]
[1724016328602,1.527942,59792.0,59791.0,5e-07]
[1724016328803,2.35056092,59792.0,59791.0,5e-07]
[1724016329004,2.3181967,59792.0,59791.0,5e-07]
[1724016329504,2.39295249,59792.0,59791.0,5e-07]
[1724016330104,2.40695249,59792.0,59791.0,5e-07]
[1724016330305,2.36628978,59792.0,59791.0,5e-07]
[1724016330483,2.35313571,59792.0,59791.0,5e-07]
[1724016330717,2.36713571,59792.0,59791.0,5e-07]
[1724016330915,2.38113571,59792.0,59791.0,5e-07]
[1724016331147,2.36713571,59792.0,59791.0,5e-07]
[1724016331301,2.36711978,59792.0,59791.0,5e-07]
[1724016331500,2.30637992,59792.0,59791.0,5e-07]
[1724016332702,2.47793446,59792.0,59791.0,5e-07]
[1724016333632,2.47793446,59792.0,59791.0,1e-06]
[1724016333633,2.59334057,59792.0,59791.0,1e-06]
[1724016333907,2.67434057,59792.0,59791.0,1e-06]
[1724016334665,0.31744869,59772.0,59770.0,0.1411]
[1724016334951,1.37510083,59772.0,59770.0,0.1411]
[1724016335160,1.37510083,59772.0,59758.0,0.51177509]
[1724016335161,1.94531069,59772.0,59766.0,0.1411]
[1724016335376,1.94531069,59772.0,59771.0,1e-06]
[1724016335377,2.7204274,59772.0,59771.0,1e-06]
[1724016335582,2.7204274,59772.0,59753.0,0.074275]
[1724016335583,1.25460669,59757.0,59753.0,0.074275]
[1724016335789,1.82081283,59757.0,59753.0,0.074275]
[1724016335996,1.92081283,59757.0,59753.0,0.074275]
[1724016336202,1.70953083,59757.0,59753.0,0.074275]
[1724016336412,1.94554417,59757.0,59753.0,0.074275]
[1724016337005,1.95254417,59757.0,59753.0,0.074275]
[1724016337482,1.9463901,59757.0,59753.0,0.074275]
[1724016337683,1.9553901,59757.0,59753.0,0.074275]
[1724016339127,1.9663901,59757.0,59753.0,0.074275]
[1724016339509,1.9553901,59757.0,59753.0,0.074275]
[1724016339741,1.97740854,59757.0,59753.0,0.074275]
[1724016342580,1.95640854,59757.0,59753.0,0.074275]
[1724016342790,1.97740854,59757.0,59753.0,0.074275]
[1724016343492,1.96840854,59757.0,59753.0,0.074275]
[1724016343617,1.96640854,59757.0,59753.0,0.074275]
[1724016344188,1.97940854,59757.0,59753.0,0.074275]
[1724016344710,1.89840854,59757.0,59753.0,0.074275]
[1724016344917,1.97940854,59757.0,59753.0,0.074275]
[1724016345110,1.96940854,59757.0,59753.0,0.074275]
[1724016345531,1.96840854,59757.0,59753.0,0.074275]
[1724016345740,1.98240854,59757.0,59753.0,0.074275]
[1724016345947,1.97040854,59757.0,59753.0,0.074275]
[1724016346153,1.95640854,59757.0,59753.0,0.074275]
[1724016346352,1.98140854,59757.0,59753.0,0.074275]
[1724016346957,1.98140854,59757.0,59753.0,0.009075]
[1724016351013,1.98340854,59757.0,59753.0,0.009075]
[1724016351225,2.31449054,59757.0,59753.0,0.009075]
[1724016351376,2.39379054,59757.0,59753.0,0.009075]
[1724016351737,2.37979054,59757.0,59753.0,0.009075]
[1724016352250,2.39379054,59757.0,59753.0,0.009075]
[1724016352459,2.38279054,59757.0,59753.0,0.009075]
[1724016352592,2.36879054,59757.0,59753.0,0.009075]
[1724016352793,1.94740854,59757.0,59753.0,0.009075]
[1724016353029,1.96140854,59757.0,59753.0,0.009075]
[1724016353228,1.94740854,59757.0,59753.0,0.009075]
[1724016354130,1.93340854,59757.0,59753.0,0.009075]
[1724016354322,2.00040854,59757.0,59753.0,0.009075]
[1724016354769,1.97040854,59757.0,59753.0,0.009075]
[1724016354939,1.98440854,59757.0,59753.0,0.009075]
[1724016355322,1.97040854,59757.0,59753.0,0.009075]
[1724016355523,1.98440854,59757.0,59753.0,0.009075]
[1724016355722,2.00040854,59757.0,59753.0,0.009075]
[1724016355936,2.01340854,59757.0,59753.0,0.009075]
[1724016356169,1.98340854,59757.0,59753.0,0.009075]
[1724016356370,2.00040854,59757.0,59753.0,0.009075]
[1724016356787,2.01440854,59757.0,59753.0,0.009075]
[1724016357954,1.93340854,59757.0,59754.0,0.0782]
[1724016358157,2.01440854,59757.0,59754.0,0.0782]
[1724016358365,2.01440854,59757.0,59753.0,0.009075]
[1724016358770,2.00040854,59757.0,59753.0,0.009075]
[1724016358996,1.98640854,59757.0,59753.0,0.009075]
[1724016359196,2.01340854,59757.0,59753.0,0.009075]
[1724016359396,1.99940854,59757.0,59753.0,0.009075]
[1724016359643,1.98640854,59757.0,59753.0,0.009075]
[1724016359951,2.56434508,59757.0,59753.0,0.009075]
[1724016360244,2.33006308,59757.0,59753.0,0.009075]
[1724016360446,2.06250854,59757.0,59753.0,0.009075]
[1724016360654,2.00040854,59757.0,59753.0,0.009075]
[1724016361373,2.00040854,59757.0,59756.0,0.149275]
[1724016361374,1.0738261,59757.0,59756.0,0.149275]
[1724016361582,1.1548261,59757.0,59756.0,0.149275]
[1724016361828,1.08609476,59757.0,59756.0,0.149275]
[1724016362232,1.16709476,59757.0,59756.0,0.149275]
[1724016362425,1.18109476,59757.0,59756.0,0.149275]
[1724016362601,1.16709476,59757.0,59756.0,0.149275]
[1724016362799,1.17209476,59757.0,59756.0,0.149275]
[1724016363005,1.15809476,59757.0,59756.0,0.149275]
[1724016363164,1.16009476,59757.0,59756.0,0.149275]
[1724016363598,1.26009476,59757.0,59756.0,0.149275]
[1724016365376,1.17909476,59757.0,59756.0,0.149275]
[1724016365581,0.71019307,59757.0,59756.0,0.149275]
[1724016365790,0.49305207,59757.0,59756.0,0.16511]
[1724016366191,0.49305207,59757.0,59756.0,0.18559274]
[1724016366324,0.49305207,59757.0,59756.0,0.185592]
[1724016367098,0.49305207,59757.0,59756.0,0.302735]
[1724016367312,0.49305207,59757.0,59756.0,0.282253]
[1724016368200,0.49305207,59757.0,59756.0,0.30273392]
[1724016368366,0.49305207,59757.0,59756.0,0.53701992]
[1724016368714,0.48605207,59757.0,59756.0,0.53701992]
[1724016368825,0.48605207,59757.0,59756.0,0.17579092]
[1724016369035,0.48605207,59757.0,59756.0,0.15531]
[1724016369644,0.48605207,59757.0,59756.0,0.139475]
[1724016370655,0.48605207,59757.0,59756.0,0.1403825]
[1724016371521,0.48605207,59757.0,59756.0,0.2575255]
[1724016371711,0.48605207,59757.0,59756.0,0.59329246]
[1724016371936,0.48605207,59757.0,59756.0,0.82757846]
[1724016372577,0.48605207,59757.0,59756.0,0.8080975]
[1724016372783,0.48805207,59757.0,59756.0,0.91124329]
[1724016372996,0.48705207,59757.0,59756.0,0.91124329]
[1724016373199,0.48605207,59757.0,59756.0,0.91124329]
[1724016373405,0.48705207,59757.0,59756.0,0.91124329]
[1724016373615,0.48805207,59757.0,59756.0,0.91124329]
[1724016376475,0.48805207,59757.0,59756.0,0.89076285]
[1724016381770,0.48805207,59757.0,59756.0,1.12604885]
[1724016381963,0.48805207,59757.0,59756.0,1.12504885]
[1724016382329,0.48805207,59757.0,59756.0,1.12604885]
[1724016382506,0.48805207,59757.0,59756.0,1.14652901]
[1724016382699,0.48887707,59757.0,59756.0,1.14552901]
[1724016383106,0.48847434,59757.0,59756.0,1.14552901]
[1724016384066,0.48842488,59757.0,59756.0,1.14552901]
[1724016384702,0.48842488,59757.0,59756.0,1.14819132]
[1724016384910,0.48842488,59757.0,59756.0,1.14619132]
[1724016386193,0.48842488,59757.0,59756.0,1.14819132]
[1724016387188,0.48842488,59757.0,59756.0,1.14619132]
[1724016387463,0.48842488,59757.0,59756.0,1.14819132]
[1724016388688,0.48842488,59757.0,59756.0,1.14619132]
[1724016389431,0.48842488,59757.0,59756.0,1.14819132]
[1724016389636,0.48842488,59757.0,59756.0,1.15019132]
[1724016390391,0.48842488,59757.0,59756.0,1.14819132]
[1724016391074,0.48842488,59757.0,59756.0,1.14619132]
[1724016391297,0.48842488,59757.0,59756.0,1.14819132]
[1724016391484,0.48842488,59757.0,59756.0,1.14619132]
[1724016391689,0.48842488,59757.0,59756.0,1.14819132]
[1724016391929,0.48842488,59757.0,59756.0,1.14619132]
[1724016392138,0.48842488,59757.0,59756.0,1.14819132]
[1724016392483,0.48842488,59757.0,59756.0,1.15019132]
[1724016393167,0.48842488,59757.0,59756.0,1.14619132]
[1724016394330,0.48842488,59757.0,59756.0,1.18136552]
[1724016395101,0.48842488,59757.0,59756.0,1.18336552]
[1724016395297,0.48842488,59757.0,59756.0,1.18136552]
[1724016396361,0.48842488,59757.0,59756.0,1.19058679]
[1724016398069,0.48842488,59757.0,59756.0,1.19458679]
[1724016398398,0.48842488,59757.0,59756.0,1.19058679]
[1724016401233,0.48842488,59757.0,59756.0,1.19258679]
[1724016401819,0.48842488,59757.0,59756.0,1.19458679]
[1724016404181,0.48842488,59757.0,59756.0,1.19058679]
[1724016404322,0.48842488,59757.0,59756.0,1.19258679]
[1724016404518,0.48842488,59757.0,59756.0,1.18336552]
[1724016404720,0.48842488,59757.0,59756.0,1.19258679]
[1724016405171,0.48842488,59757.0,59756.0,1.19058679]
[1724016405376,0.48842488,59757.0,59756.0,1.19258679]
[1724016405528,0.48842488,59757.0,59756.0,1.19058679]
[1724016406403,0.48842488,59757.0,59756.0,1.19258679]
[1724016406650,0.48842488,59757.0,59756.0,1.24262069]
[1724016407229,0.48842488,59757.0,59756.0,1.63896383]
[1724016408234,0.48842488,59757.0,59756.0,1.56391298]
[1724016408592,0.48842488,59757.0,59756.0,1.56591298]
[1724016408792,0.48842488,59757.0,59756.0,1.56591198]
[1724016409315,0.48842488,59757.0,59756.0,1.65679573]
[1724016409521,0.48842488,59757.0,59756.0,1.66601667]
[1724016410348,0.48842488,59757.0,59756.0,1.69103362]
[1724016411299,0.48842488,59757.0,59756.0,1.48494887]
[1724016411499,0.48842488,59757.0,59756.0,1.56594887]
[1724016411678,0.48842488,59757.0,59756.0,1.19462268]
[1724016411884,0.48842488,59757.0,59756.0,1.56594887]
[1724016413523,0.48842488,59757.0,59756.0,2.12241006]
[1724016413524,0.12806358,59757.0,59756.0,2.12241006]
[1724016413725,0.12806358,59757.0,59756.0,2.29498797]
[1724016413901,0.000825,59771.0,59770.0,0.82447031]
[1724016414134,0.000825,59771.0,59770.0,1.57900802]
[1724016414342,0.000825,59771.0,59770.0,1.70448387]
[1724016414471,0.000825,59771.0,59770.0,1.70448401]
[1724016414679,0.000825,59771.0,59770.0,1.57900802]
[1724016415227,0.000825,59771.0,59770.0,1.80923902]
[1724016415408,0.000825,59771.0,59770.0,1.93463591]
[1724016415577,0.000825,59771.0,59770.0,1.94063591]
[1724016415578,0.001825,59771.0,59770.0,1.94063591]
[1724016415985,0.002825,59771.0,59770.0,1.94963591]
[1724016416213,0.002825,59771.0,59770.0,1.57830972]
[1724016416371,0.002825,59771.0,59770.0,1.82410557]
[1724016417335,0.002825,59771.0,59770.0,1.90384466]
[1724016417486,0.002825,59771.0,59770.0,1.92431742]
[1724016418230,0.002825,59771.0,59770.0,1.82008874]
[1724016418369,0.002825,59771.0,59770.0,1.82408874]
[1724016420017,0.002825,59771.0,59770.0,1.82008874]
[1724016420286,0.002825,59771.0,59770.0,1.82408874]
[1724016420734,0.002825,59771.0,59770.0,1.8240838]
[1724016420945,0.002825,59771.0,59770.0,1.77966173]
[1724016421161,0.002825,59771.0,59770.0,1.82408345]
[1724016421335,0.002825,59771.0,59770.0,1.99563799]
[1724016421508,0.002825,59771.0,59770.0,1.97516537]
[1724016421722,0.002825,59771.0,59770.0,2.07073668]
[1724016422522,0.002825,59771.0,59770.0,1.69954888]
[1724016423174,0.001825,59771.0,59770.0,1.69054888]
[1724016423374,0.001825,59771.0,59770.0,2.08679777]
[1724016423600,0.001825,59771.0,59770.0,1.98663799]
[1724016423922,0.001825,59771.0,59770.0,1.98463799]
[1724016424073,0.000825,59771.0,59770.0,1.32368105]
[1724016424280,0.000825,59771.0,59770.0,1.74544851]
[1724016424483,0.000825,59771.0,59770.0,1.13918395]
[1724016424643,0.000825,59771.0,59770.0,1.05394321]
[1724016425635,0.000825,59771.0,59770.0,1.10397973]
[1724016425887,0.000825,59771.0,59770.0,1.05394321]
[1724016426655,0.000825,59771.0,59770.0,1.1039753]
[1724016427147,0.000825,59771.0,59770.0,1.05394321]
[1724016427370,0.000825,59771.0,59770.0,1.1039753]
[1724016428495,0.000825,59771.0,59770.0,1.05394321]
[1724016428696,0.000825,59771.0,59770.0,1.05394393]
[1724016432784,0.000825,59771.0,59770.0,1.03347031]
[1724016432986,0.000825,59771.0,59770.0,1.0539441]
[1724016433472,0.000825,59771.0,59770.0,1.03347031]
[1724016433670,0.000825,59771.0,59770.0,1.05394365]
[1724016434727,0.000825,59771.0,59770.0,1.05394375]
[1724016434929,0.000825,59771.0,59770.0,1.10395205]
[1724016435102,1e-08,59771.0,59770.0,1.10395205]
[1724016435535,1e-08,59771.0,59770.0,1.05394375]
[1724016435665,1e-08,59771.0,59770.0,1.10395205]
[1724016437133,1e-08,59771.0,59770.0,1.03347031]
[1724016437305,1e-08,59771.0,59770.0,1.08914845]
[1724016438178,1e-08,59771.0,59770.0,1.13915675]
[1724016439518,1e-08,59771.0,59770.0,1.14837462]
[1724016439720,1e-08,59771.0,59770.0,1.13915675]
[1724016439880,1e-08,59771.0,59770.0,1.14837462]
[1724016440079,1e-08,59771.0,59770.0,1.13915675]
[1724016440273,1e-08,59771.0,59770.0,1.14837462]
[1724016440537,1e-08,59771.0,59770.0,1.09836632]
[1724016441170,1e-08,59771.0,59770.0,1.14837321]
[1724016441338,1e-08,59771.0,59770.0,1.0983653]
[1724016441513,1e-08,59771.0,59770.0,1.14837544]
[1724016441700,1e-08,59771.0,59770.0,1.38260644]
[1724016441906,1e-08,59771.0,59770.0,1.38351394]
[1724016442314,1e-08,59771.0,59770.0,1.44217161]
[1724016442757,1e-08,59771.0,59770.0,1.39216147]
[1724016443370,1e-08,59771.0,59770.0,1.38707029]
[1724016443564,1e-08,59771.0,59770.0,1.46208275]
[1724016443766,1e-08,59771.0,59770.0,1.38707029]
[1724016443941,1e-08,59771.0,59770.0,1.46208275]
[1724016444147,1e-08,59771.0,59770.0,1.38707029]
[1724016444453,1e-08,59771.0,59770.0,1.46208275]
[1724016445106,1e-08,59771.0,59770.0,1.37331178]
[1724016445302,1e-08,59771.0,59770.0,1.83327709]
[1724016445698,1e-08,59771.0,59770.0,1.83327711]
[1724016447216,1e-08,59771.0,59770.0,1.38707056]
[1724016447421,1e-08,59771.0,59770.0,1.75826365]
[1724016448288,1e-08,59771.0,59770.0,1.85833741]
[1724016448875,1e-08,59771.0,59770.0,1.75826365]
[1724016449279,1e-08,59771.0,59770.0,1.77508024]
[1724016449500,1e-08,59771.0,59770.0,1.85833757]
[1724016449840,1e-08,59771.0,59770.0,1.73987566]
[1724016450037,0.0762,59774.0,59773.0,0.82042831]
[1724016450241,0.0762,59774.0,59773.0,1.06994555]
[1724016450833,0.0762,59774.0,59773.0,1.0218905]
[1724016451253,0.0762,59774.0,59773.0,1.10897307]
[1724016452293,0.0762,59774.0,59773.0,1.48016823]
[1724016452739,0.0762,59774.0,59773.0,1.49416823]
[1724016452969,0.0762,59774.0,59773.0,1.41908566]
[1724016453252,0.0762,59774.0,59773.0,1.52115942]
[1724016453389,0.0762,59774.0,59773.0,1.51915942]
[1724016453593,0.0762,59774.0,59773.0,1.42117013]
[1724016453832,0.0762,59774.0,59773.0,1.5191588]
[1724016454442,0.0762,59774.0,59773.0,1.41908504]
[1724016455015,0.077025,59774.0,59773.0,1.41908504]
[1724016455228,0.077025,59774.0,59773.0,1.54417725]
[1724016456318,0.07662227,59774.0,59773.0,1.41908504]
[1724016456669,0.07662227,59774.0,59773.0,1.41908293]
[1724016458788,0.07662227,59774.0,59773.0,1.41908283]
[1724016459390,0.07662227,59774.0,59773.0,1.9387531]
[1724016460394,0.07662227,59774.0,59773.0,1.9407531]
[1724016460598,0.07662227,59774.0,59773.0,1.9387531]
[1724016462047,0.000825,59774.0,59773.0,1.9387531]
[1724016462430,0.000825,59774.0,59773.0,1.82029163]
[1724016462753,0.000825,59774.0,59773.0,1.94075319]
[1724016463168,0.000825,59774.0,59773.0,2.17497219]
[1724016463798,0.000825,59774.0,59773.0,2.17697219]
[1724016464041,0.000825,59774.0,59773.0,1.65730192]
[1724016464214,0.000825,59774.0,59773.0,2.17697219]
[1724016464416,0.000825,59774.0,59773.0,1.75730192]
[1724016464617,0.000825,59774.0,59773.0,2.27697219]
[1724016464826,0.000825,59774.0,59773.0,1.75730192]
[1724016465117,0.076025,59774.0,59773.0,2.27697219]
[1724016465325,0.076025,59774.0,59773.0,1.75730192]
[1724016465562,0.076025,59774.0,59773.0,2.27697219]
[1724016465737,0.076025,59774.0,59773.0,1.75730192]
[1724016465973,0.076025,59774.0,59773.0,2.2769712]
[1724016466164,0.076025,59774.0,59773.0,1.75730151]
[1724016466370,0.076025,59774.0,59773.0,2.2769712]
[1724016466504,0.140925,59774.0,59773.0,1.75730151]
[1724016466702,0.076025,59774.0,59773.0,2.27697104]
[1724016466901,0.076025,59774.0,59773.0,1.75730135]
[1724016467224,0.076025,59774.0,59773.0,2.27697104]
[1724016467385,0.076025,59774.0,59773.0,1.75730135]
[1724016467598,0.076025,59774.0,59773.0,2.27697104]
[1724016469178,0.076025,59774.0,59773.0,2.17297104]
[1724016469378,0.076025,59774.0,59773.0,2.17697104]
[1724016470467,0.000825,59774.0,59773.0,2.17697104]
[1724016470884,0.000825,59774.0,59773.0,2.17697085]
[1724016472417,0.000825,59774.0,59773.0,2.14728044]
[1724016472625,0.000825,59774.0,59773.0,2.17697083]
[1724016475115,0.000825,59774.0,59773.0,2.1769706]
[1724016475490,0.000825,59774.0,59773.0,2.17696556]
[1724016479004,0.000825,59774.0,59773.0,2.11418167]
[1724016479230,0.000825,59774.0,59773.0,2.31216981]
[1724016480033,0.000825,59774.0,59773.0,2.31216888]
[1724016480236,0.000825,59774.0,59773.0,2.31307638]
[1724016480684,0.000825,59774.0,59773.0,2.27787204]
[1724016481776,0.000825,59774.0,59773.0,2.24818175]
[1724016481983,0.000825,59774.0,59773.0,2.27787204]
[1724016482497,0.000825,59774.0,59773.0,2.25739931]
[1724016482731,0.000825,59774.0,59773.0,2.27787204]
[1724016482932,1e-08,59774.0,59773.0,2.50052921]
[1724016483559,1e-08,59774.0,59773.0,2.50051194]
[1724016484378,1e-08,59774.0,59773.0,2.27784689]
[1724016484702,1e-08,59774.0,59773.0,2.50051194]
[1724016484907,1e-08,59774.0,59773.0,2.27784689]
[1724016486042,1e-08,59774.0,59773.0,1.26855481]
[1724016486418,1e-08,59774.0,59773.0,2.27793095]
[1724016490728,1e-08,59774.0,59773.0,2.27393092]
[1724016491089,1e-08,59774.0,59773.0,2.27593092]
[1724016492723,1e-08,59774.0,59773.0,2.27593676]
[1724016494624,1e-08,59774.0,59773.0,2.24624649]
[1724016494836,1e-08,59774.0,59773.0,2.27593611]
[1724016495037,1e-08,59774.0,59773.0,2.15739238]
[1724016495235,1e-08,59774.0,59773.0,2.27593608]
[1724016495442,0.14210001,59774.0,59773.0,2.27593608]
[1724016496191,0.14210001,59774.0,59773.0,2.27793608]
[1724016496523,0.07670001,59774.0,59773.0,2.27793608]
[1724016496727,1e-08,59774.0,59773.0,2.27793608]
[1724016497336,1e-08,59774.0,59773.0,1.75827889]
[1724016497532,1e-08,59774.0,59773.0,2.27393142]
[1724016498146,1e-08,59774.0,59773.0,2.27593142]
[1724016498343,1e-08,59774.0,59773.0,2.27393142]
[1724016498989,1e-08,59774.0,59773.0,2.16660505]
[1724016499162,1e-08,59774.0,59773.0,2.27593158]
[1724016499367,1e-08,59774.0,59773.0,2.27793158]
[1724016502192,1e-08,59774.0,59773.0,2.2779253]
[1724016503358,1e-08,59774.0,59773.0,2.27792503]
[1724016506832,1e-08,59774.0,59773.0,2.2779292]
[1724016507640,1e-08,59774.0,59773.0,2.27792876]
[1724016508080,1e-08,59774.0,59773.0,2.16860288]
[1724016508305,1e-08,59774.0,59773.0,2.27792866]
[1724016510109,1e-08,59774.0,59773.0,2.27792909]
[1724016510517,1e-08,59774.0,59773.0,2.27592909]
[1724016511458,1e-08,59774.0,59773.0,2.27592647]
[1724016511677,1e-08,59774.0,59773.0,2.27792647]
[1724016511894,1e-08,59774.0,59773.0,2.15938299]
[1724016512103,1e-08,59774.0,59773.0,2.27792604]
[1724016515857,1e-08,59774.0,59773.0,2.25745391]
[1724016516062,1e-08,59774.0,59773.0,2.27792494]
[1724016518372,0.07710001,59774.0,59773.0,2.27792494]
[1724016518573,0.07710001,59774.0,59773.0,2.27792512]
[1724016518574,0.13980001,59774.0,59773.0,2.27792512]
[1724016520421,0.13980001,59774.0,59773.0,2.27792734]
[1724016520624,0.13980001,59774.0,59773.0,2.0397381]
[1724016520782,0.13980001,59774.0,59773.0,2.01204787]
[1724016520990,0.13980001,59774.0,59773.0,2.04173865]
[1724016521838,0.13980001,59774.0,59773.0,1.95288343]
[1724016522040,0.13980001,59774.0,59773.0,2.04173972]
[1724016522241,0.13980001,59774.0,59773.0,2.04373972]
[1724016522477,0.13980001,59774.0,59773.0,1.52407323]
[1724016522782,0.13980001,59774.0,59773.0,2.04373972]
[1724016522990,0.13980001,59774.0,59773.0,1.52407323]
[1724016523113,0.13980001,59774.0,59773.0,2.04373972]
[1724016523319,0.13980001,59774.0,59773.0,1.52407323]
[1724016523563,0.13980001,59774.0,59773.0,2.04373972]
[1724016523794,0.13980001,59774.0,59773.0,1.52407323]
[1724016523973,0.13980001,59774.0,59773.0,2.04373972]
[1724016524175,0.13980001,59774.0,59773.0,1.52407323]
[1724016524399,0.13980001,59774.0,59773.0,2.04373972]
[1724016524597,0.13980001,59774.0,59773.0,1.52407324]
[1724016524766,0.13980001,59774.0,59773.0,2.04373973]
[1724016524969,0.13980001,59774.0,59773.0,1.52407324]
[1724016525173,0.13980001,59774.0,59773.0,2.04373973]
[1724016525374,0.13980001,59774.0,59773.0,1.52407324]
[1724016525567,0.13980001,59774.0,59773.0,2.04373973]